bitfinex/quotes_BTCUSD_20211001
["timestamp","ask_amount","ask_price","bid_price","bid_amount"]
[1633084142277,0.84,46931.0,46853.0,1.0066839]
[1633084142278,0.05,46863.0,46853.0,0.5792769]
[1633084142465,0.21887377,46862.0,46854.0,0.64029]
[1633084142665,0.00437569,46860.0,46855.0,1.06570965]
[1633084142863,0.22630684,46869.0,46841.0,0.7841784]
[1633084142864,49.26778381,46945.0,46860.0,0.00564032]
[1633084143065,1.05,46868.0,46865.0,0.00121963]
[1633084143267,0.00120831,46909.0,46860.0,0.00321084]
[1633084143268,48.55574639,46945.0,46911.0,0.04197237]
[1633084143471,48.55574639,46945.0,46900.0,1.08682]
[1633084143472,2.12948069,46939.0,46900.0,1.08682]
[1633084143666,11.37507403,46953.0,46868.0,0.00128629]
[1633084143667,0.41060508,46938.0,46901.0,1.0]
[1633084143874,0.00125112,46915.0,46913.0,1.234]
[1633084144072,0.427333,46946.0,46913.0,1.234]
[1633084144073,0.29957849,46957.0,46914.0,1.04217933]
[1633084144266,0.00154166,46969.0,46945.0,0.1]
[1633084144267,9.28248516,46953.0,46945.0,0.1]
[1633084144467,9.28248516,46953.0,46915.0,2.3026]
[1633084144468,0.21764304,46924.0,46915.0,0.30235409]
[1633084144667,1.67902478,46945.0,46916.0,1.41935491]
[1633084144668,0.00121102,46930.0,46916.0,1.41935491]
[1633084144868,0.0012642,46922.0,46916.0,2.00624525]
[1633084145065,0.0012642,46922.0,46915.0,0.29517079]
[1633084145066,1.11781716,46916.0,46915.0,0.29517079]
[1633084145278,1.11781716,46916.0,46884.0,0.18876251]
[1633084145279,1.11781716,46916.0,46861.0,0.005]
[1633084145280,0.00020487,46871.0,46861.0,0.005]
[1633084145469,1.5,46891.0,46835.0,0.85913675]
[1633084145470,0.0005,46862.0,46835.0,0.85913675]
[1633084145679,0.09842504,46836.0,46802.0,0.2007]
[1633084145879,0.003125,46849.0,46779.0,0.33722628]
[1633084145880,0.2007,46802.0,46779.0,0.33722628]
[1633084146074,0.2007,46802.0,46780.0,0.32753]
[1633084146272,0.00121666,46781.0,46780.0,0.33253]
[1633084146467,0.00121666,46781.0,46760.0,1.24607272]
[1633084146468,0.00121666,46781.0,46774.0,0.09309443]
[1633084146669,0.2007,46802.0,46740.0,0.001]
[1633084146670,0.05462837,46780.0,46740.0,0.001]
[1633084146869,0.05462837,46780.0,46696.0,0.02]
[1633084146870,0.0031703,46727.0,46712.0,0.20046]
[1633084147070,0.19433894,46769.0,46763.0,0.02658606]
[1633084147268,0.00128473,46764.0,46763.0,0.11]
[1633084147469,0.00625,46740.0,46727.0,0.65844232]
[1633084147669,0.00625,46740.0,46721.0,0.70897277]
[1633084147670,0.04455,46723.0,46721.0,0.70897277]
[1633084147879,0.11564502,46687.0,46686.0,0.005]
[1633084148069,0.11564502,46687.0,46658.0,0.201]
[1633084148070,1.3716036,46687.0,46660.0,3.23049033]
[1633084148269,0.003125,46689.0,46662.0,0.025]
[1633084148270,0.99061368,46683.0,46662.0,0.025]
[1633084148472,0.99061368,46683.0,46629.0,0.0011918]
[1633084148473,1.21337881,46663.0,46629.0,0.0011918]
[1633084148675,1.21337881,46663.0,46601.0,0.00101156]
[1633084148676,0.07859041,46606.0,46601.0,0.00101156]
[1633084148878,0.90658789,46626.0,46602.0,0.42069]
[1633084148879,0.00129002,46607.0,46602.0,0.42069]
[1633084149071,0.90658789,46626.0,46561.0,0.06935345]
[1633084149072,0.39490445,46581.0,46561.0,0.06935345]
[1633084149271,0.09132544,46562.0,46559.0,0.0196]
[1633084149470,0.00131138,46536.0,46506.0,0.08218783]
[1633084149672,0.00131138,46536.0,46500.0,0.35242545]
[1633084149673,0.00099999,46507.0,46500.0,0.35242545]
[1633084149872,0.10564491,46535.0,46443.0,0.009354]
[1633084149873,0.003125,46483.0,46443.0,0.009354]
[1633084150072,0.86937846,46502.0,46416.0,0.03]
[1633084150073,0.10966071,46438.0,46436.0,2.90049]
[1633084150272,0.10966071,46438.0,46408.0,0.01436604]
[1633084150273,0.04663742,46436.0,46414.0,0.9]
[1633084150469,0.04663742,46436.0,46414.0,0.03695498]
[1633084150470,0.00099999,46415.0,46414.0,0.03695498]
[1633084150672,0.865,46435.0,46414.0,0.54675498]
[1633084150879,0.05076976,46483.0,46324.0,0.24]
[1633084150880,0.00440546,46436.0,46385.0,0.5]
[1633084151074,0.16174614,46481.0,46414.0,0.046875]
[1633084151075,0.25980288,46478.0,46414.0,0.046875]
[1633084151274,0.04914591,46499.0,46414.0,0.046875]
[1633084151275,0.00124719,46441.0,46437.0,0.00126245]
[1633084151470,0.005,46476.0,46416.0,0.5855385]
[1633084151671,0.005,46476.0,46398.0,0.07275548]
[1633084151672,0.00126323,46419.0,46398.0,0.06712705]
[1633084151869,0.05,46438.0,46398.0,0.06712705]
[1633084151870,0.81732484,46417.0,46398.0,0.06212705]
[1633084152071,0.0897386,46400.0,46398.0,0.1096]
[1633084152279,0.0897386,46400.0,46362.0,1.065e-05]
[1633084152280,0.11236419,46386.0,46362.0,1.065e-05]
[1633084152469,0.11236419,46386.0,46333.0,0.20324336]
[1633084152470,0.4998,46385.0,46333.0,0.1910077]
[1633084152670,0.00125452,46364.0,46312.0,0.6174432]
[1633084152874,0.00126375,46344.0,46312.0,0.38080251]
[1633084153072,0.00126375,46344.0,46285.0,0.002]
[1633084153073,0.001292,46341.0,46325.0,0.2923]
[1633084153279,0.001292,46341.0,46277.0,0.03]
[1633084153280,0.00124199,46278.0,46277.0,0.03]
[1633084153475,0.00124199,46278.0,46263.0,0.18093159]
[1633084153476,0.022,46263.0,46237.0,0.25]
[1633084153688,1.5,46362.0,46277.0,0.002]
[1633084153689,2.43132329,46304.0,46277.0,0.002]
[1633084153989,2.43132329,46304.0,46260.0,0.05]
[1633084153990,0.003125,46265.0,46260.0,0.05]
[1633084154255,0.003125,46237.0,46228.0,0.03]
[1633084154374,1.11989628,46290.0,46228.0,0.0296]
[1633084154574,0.7636,46266.0,46200.0,0.05]
[1633084154776,0.7636,46266.0,46150.0,0.002]
[1633084154777,0.09065593,46204.0,46148.0,0.002]
[1633084154977,1.01409335,46203.0,46156.0,0.95]
[1633084155175,0.09260191,46186.0,46156.0,0.95]
[1633084155375,0.06373301,46202.0,46097.0,0.11287398]
[1633084155376,0.00128589,46182.0,46177.0,0.00129594]
[1633084155575,0.00847527,46220.0,46116.0,1.20227326]
[1633084155778,0.00847527,46220.0,46132.0,0.00146982]
[1633084155779,0.49374,46154.0,46132.0,0.00146982]
[1633084155973,0.10343655,46117.0,46107.0,0.762]
[1633084156181,0.00025691,46109.0,46108.0,0.222023]
[1633084156378,0.00025691,46109.0,46097.0,0.00618398]
[1633084156379,0.00025691,46109.0,46097.0,0.05618398]
[1633084156580,0.8640227,46131.0,46102.0,0.66575]
[1633084156784,0.51451412,46130.0,46109.0,0.384]
[1633084156977,0.45,46088.0,46077.0,0.00118284]
[1633084157242,0.12119799,46088.0,46077.0,0.00118284]
[1633084157375,0.96632495,46126.0,46096.0,0.003125]
[1633084157576,3.7861244,46213.0,46127.0,1.34819886]
[1633084157577,0.78242738,46168.0,46127.0,1.34819886]
[1633084157784,0.78242738,46168.0,46101.0,0.00125545]
[1633084157785,1.26098529,46155.0,46128.0,0.63609642]
[1633084157974,0.096875,46159.0,46158.0,0.003125]
[1633084158179,0.10434922,46216.0,46213.0,0.003125]
[1633084158374,1.01999,46237.0,46215.0,0.5]
[1633084158778,0.44273702,46237.0,46235.0,0.66211962]
[1633084158976,0.39375,46235.0,46216.0,0.18661612]
[1633084159177,0.0824967,46292.0,46235.0,1.5]
[1633084159178,0.0198516,46291.0,46235.0,1.5]
[1633084159374,0.10104334,46317.0,46256.0,0.00124237]
[1633084159575,0.18495168,46316.0,46278.0,0.00124421]
[1633084159774,0.18495168,46316.0,46257.0,0.00744546]
[1633084159775,1.01879394,46315.0,46279.0,0.00121232]
[1633084159975,0.0668,46327.0,46258.0,0.09785099]
[1633084159976,0.221819,46322.0,46315.0,0.00761279]
[1633084160251,0.25,46355.0,46354.0,0.00123788]
[1633084160252,0.11524686,46355.0,46354.0,0.00123788]
[1633084160380,0.21738189,46402.0,46372.0,0.08405686]
[1633084160585,0.00101157,46431.0,46416.0,0.30575174]
[1633084160586,0.113432,46420.0,46416.0,0.30575174]
[1633084160780,0.04188768,46417.0,46374.0,2.50310905]
[1633084160977,0.09407826,46438.0,46374.0,2.50310905]
[1633084160978,0.30476631,46436.0,46377.0,0.0012967]
[1633084161187,0.025,46421.0,46416.0,0.00128514]
[1633084161376,0.02,46421.0,46416.0,0.00121618]
[1633084161578,0.17482381,46436.0,46377.0,0.05]
[1633084161579,0.21555702,46433.0,46377.0,0.05]
[1633084161781,0.02,46468.0,46377.0,0.05]
[1633084161782,0.005,46421.0,46416.0,0.00088254]
[1633084161974,0.005,46421.0,46414.0,0.05444107]
[1633084162183,0.005,46421.0,46397.0,0.65139591]
[1633084162184,1.5,46432.0,46397.0,0.65139591]
[1633084162379,0.01766203,46441.0,46379.0,1.5]
[1633084162380,0.01766203,46441.0,46380.0,1.0305343]
[1633084162576,0.5,46474.0,46380.0,1.0305343]
[1633084162577,0.92564155,46461.0,46415.0,0.00253663]
[1633084162776,0.01894,46446.0,46415.0,0.00213663]
[1633084162979,0.01894,46446.0,46415.0,0.00154385]
[1633084163250,0.01894,46446.0,46437.0,0.00127371]
[1633084163251,0.95,46443.0,46437.0,0.00127371]
[1633084163376,0.946875,46443.0,46441.0,0.00123907]
[1633084163579,0.920206,46443.0,46441.0,0.00123907]
[1633084163778,0.09862435,46413.0,46383.0,1.34867648]
[1633084163976,0.63050822,46412.0,46383.0,0.03601785]
[1633084164184,0.63050822,46412.0,46336.0,1.5]
[1633084164185,0.31355,46359.0,46355.0,0.2496]
[1633084164382,1.15507465,46360.0,46302.0,0.00125695]
[1633084164383,1.07726306,46316.0,46302.0,0.00125695]
[1633084164585,1.07726306,46316.0,46303.0,0.21455873]
[1633084164586,0.77347023,46314.0,46303.0,0.21455873]
[1633084164789,0.15053825,46303.0,46294.0,0.05615514]
[1633084164977,0.18365831,46304.0,46212.0,0.03]
[1633084164978,0.33707896,46302.0,46293.0,0.01]
[1633084165191,0.05018076,46359.0,46224.0,0.25]
[1633084165192,0.36161008,46331.0,46295.0,1.5]
[1633084165378,0.09796584,46252.0,46251.0,0.01]
[1633084165579,0.09796584,46252.0,46251.0,0.2281233]
[1633084165580,0.40211028,46252.0,46251.0,0.2281233]
[1633084165782,3.16862816,46300.0,46252.0,0.52290809]
[1633084165783,0.348,46300.0,46252.0,0.52290809]
[1633084165981,0.62480526,46299.0,46274.0,0.00102086]
[1633084166187,0.343,46300.0,46275.0,0.00648986]
[1633084166382,0.343,46300.0,46297.0,5.11e-06]
[1633084166585,0.343,46300.0,46253.0,0.04226895]
[1633084166586,0.3412846,46300.0,46293.0,0.00120294]
[1633084166785,0.3412846,46300.0,46289.0,0.00125102]
[1633084166986,0.2504491,46300.0,46299.0,0.8996]
[1633084167184,0.51067637,46315.0,46300.0,0.05477286]
[1633084167379,1.815,46356.0,46292.0,0.000631]
[1633084167380,0.44367521,46299.0,46292.0,0.000631]
[1633084167882,0.44367521,46299.0,46252.0,0.42448575]
[1633084167883,0.19691216,46254.0,46252.0,0.42448575]
[1633084168081,0.16355311,46252.0,46232.0,0.19431701]
[1633084168279,0.0005301,46251.0,46245.0,0.0104]
[1633084168480,0.865,46253.0,46251.0,0.0012435]
[1633084168679,0.865,46253.0,46228.0,0.28958059]
[1633084168680,0.01535466,46253.0,46237.0,0.09913125]
[1633084168888,1.5,46250.0,46245.0,0.58640658]
[1633084169079,0.95222469,46226.0,46221.0,0.87691738]
[1633084169290,0.24668938,46207.0,46186.0,0.505]
[1633084169480,0.07984035,46221.0,46186.0,0.505]
[1633084169481,0.18881473,46205.0,46204.0,3e-06]
[1633084169693,2.06878587,46164.0,46139.0,0.07511338]
[1633084169880,2.06878587,46164.0,46059.0,0.72347847]
[1633084169881,0.16136911,46152.0,46146.0,0.03]
[1633084170087,0.14229411,46152.0,46151.0,0.00129277]
[1633084170303,1.659842,46162.0,46152.0,0.23752876]
[1633084170480,1.739,46249.0,46151.0,0.00128333]
[1633084170481,1.53350677,46203.0,46164.0,0.40604336]
[1633084170681,0.2361153,46182.0,46174.0,0.002925]
[1633084170881,0.03350677,46207.0,46176.0,0.07810339]
[1633084171082,0.00512172,46251.0,46176.0,0.07810339]
[1633084171083,0.07064217,46277.0,46230.0,0.003125]
[1633084171297,0.9384479,46278.0,46230.0,0.003125]
[1633084171298,0.06212911,46278.0,46252.0,6e-07]
[1633084171483,1.15369278,46294.0,46243.0,0.00129137]
[1633084171484,0.42602219,46294.0,46283.0,5e-06]
[1633084171684,0.22215,46293.0,46265.0,0.00129368]
[1633084171881,0.32246164,46294.0,46233.0,1.20420688]
[1633084171882,0.31621164,46294.0,46291.0,0.00126793]
[1633084172080,0.31621164,46294.0,46289.0,0.09139228]
[1633084172081,0.07830823,46294.0,46293.0,0.10561217]
[1633084172285,0.62733134,46322.0,46315.0,0.24052921]
[1633084172484,0.62733134,46322.0,46312.0,0.67960875]
[1633084172485,3.69899511,46376.0,46345.0,0.003125]
[1633084172792,0.3,46408.0,46345.0,0.003125]
[1633084172793,0.296875,46408.0,46398.0,0.00120385]
[1633084172986,0.08759117,46408.0,46407.0,0.23761687]
[1633084173180,2.0387268,46447.0,46393.0,0.003125]
[1633084173181,0.05,46413.0,46409.0,0.08906579]
[1633084173386,0.325,46441.0,46439.0,0.00125498]
[1633084173581,1.00122063,46400.0,46378.0,0.00264719]
[1633084173784,0.38335815,46399.0,46398.0,0.00128148]
[1633084173979,0.38335815,46399.0,46398.0,0.06346172]
[1633084173980,0.222009,46399.0,46398.0,0.06346172]
[1633084174182,0.64754477,46400.0,46398.0,0.08212764]
[1633084174384,0.3,46411.0,46404.0,0.00105869]
[1633084174582,0.1644173,46484.0,46479.0,0.00127432]
[1633084174781,0.1644173,46484.0,46446.0,0.0012984]
[1633084174782,0.43782304,46472.0,46446.0,0.0012984]
[1633084174985,0.43782304,46472.0,46399.0,0.55]
[1633084174986,0.35,46444.0,46400.0,0.08080204]
[1633084175185,0.35,46444.0,46383.0,0.00122951]
[1633084175186,4.12296826,46399.0,46383.0,4.95e-05]
[1633084175384,0.56953361,46376.0,46346.0,0.5]
[1633084175693,0.56953361,46376.0,46296.0,0.002]
[1633084175694,0.17552003,46320.0,46296.0,0.002]
[1633084175896,0.20982386,46341.0,46320.0,0.00651122]
[1633084175897,0.00126301,46323.0,46320.0,0.00651122]
[1633084176083,0.00126301,46323.0,46297.0,4.33163452]
[1633084176084,0.24424073,46301.0,46297.0,4.33163452]
[1633084176286,3.81199273,46290.0,46232.0,0.03]
[1633084176483,3.81199273,46290.0,46228.0,0.02]
[1633084176484,0.39196405,46288.0,46283.0,0.005]
[1633084176702,3.85423089,46290.0,46260.0,0.00125036]
[1633084176703,8.6437,46270.0,46260.0,0.00125036]
[1633084176883,8.6437,46289.0,46270.0,17.1895598]
[1633084177086,0.00617864,46353.0,46290.0,7.01992586]
[1633084177087,0.00120163,46307.0,46290.0,7.01992586]
[1633084177295,0.00124156,46357.0,46332.0,0.1]
[1633084177496,0.48445042,46392.0,46332.0,0.1]
[1633084177497,0.3899,46392.0,46379.0,0.00127721]
[1633084177698,0.35,46442.0,46354.0,0.00127924]
[1633084177699,0.22259164,46410.0,46392.0,0.236775]
[1633084177990,0.0943097,46427.0,46392.0,0.236775]
[1633084177991,0.00095049,46467.0,46444.0,0.63586267]
[1633084178259,0.28198763,46453.0,46451.0,0.1]
[1633084178390,0.00124999,46486.0,46445.0,0.123754]
[1633084178391,0.05,46454.0,46453.0,0.002925]
[1633084178584,0.35,46511.0,46507.0,0.18736041]
[1633084178792,0.00126713,46528.0,46522.0,0.00126295]
[1633084178986,0.00126713,46528.0,46507.0,0.03920574]
[1633084178987,1.05770229,46507.0,46506.0,0.68847847]
[1633084179184,1.05770229,46507.0,46446.0,0.05]
[1633084179185,0.4215608,46502.0,46446.0,0.05]
[1633084179385,0.003125,46487.0,46468.0,1.36438714]
[1633084179584,0.003125,46487.0,46469.0,0.0469141]
[1633084179585,0.003125,46480.0,46469.0,0.0469141]
[1633084179889,0.003125,46480.0,46422.0,0.03]
[1633084179890,0.23326757,46429.0,46422.0,0.03]
[1633084180189,0.96187662,46479.0,46465.0,0.28524424]
[1633084180384,0.05,46473.0,46466.0,0.39840541]
[1633084180584,0.04314741,46473.0,46466.0,0.11]
[1633084180790,0.04314741,46473.0,46465.0,0.23477123]
[1633084180791,0.5,46472.0,46470.0,0.5]
[1633084180985,0.5,46472.0,46431.0,0.09415116]
[1633084181264,0.5,46472.0,46405.0,0.20034]
[1633084181265,0.05029315,46428.0,46405.0,0.20034]
[1633084181388,2.30544768,46412.0,46405.0,0.19662458]
[1633084181587,0.00127226,46413.0,46376.0,0.005]
[1633084181588,0.003125,46387.0,46376.0,0.005]
[1633084181897,0.003125,46387.0,46307.0,47.06035431]
[1633084181898,0.81555987,46368.0,46328.0,0.00120274]
[1633084182085,0.55829467,46367.0,46343.0,0.005]
[1633084182287,0.55829467,46367.0,46337.0,0.00187947]
[1633084182288,0.00099999,46344.0,46337.0,0.00187947]
[1633084182483,0.23937906,46366.0,46320.0,0.54538877]
[1633084182484,0.00187947,46321.0,46320.0,0.54538877]
[1633084182788,0.59774823,46365.0,46362.0,1.25963267]
[1633084182985,0.05,46367.0,46363.0,0.37322918]
[1633084183184,0.09643984,46373.0,46366.0,0.5]
[1633084183388,0.20434387,46379.0,46364.0,1.07365969]
[1633084183586,0.00123463,46367.0,46365.0,1.496875]
[1633084183784,0.03538742,46477.0,46420.0,0.15166381]
[1633084183991,0.0012443,46496.0,46421.0,0.90211176]
[1633084184186,0.00120975,46435.0,46421.0,1.00362266]
[1633084184388,0.0012443,46496.0,46434.0,0.50099999]
[1633084184594,0.21380594,46465.0,46435.0,0.52505942]
[1633084184787,0.00251688,46422.0,46421.0,0.00031833]
[1633084184983,1.77416311,46463.0,46421.0,0.50031833]
[1633084185184,1.77416311,46463.0,46434.0,0.7505]
[1633084185185,0.00124461,46441.0,46434.0,0.7505]
[1633084185390,0.00124461,46441.0,46416.0,0.07582832]
[1633084185391,0.00300667,46418.0,46416.0,0.07582832]
[1633084185603,0.00300667,46418.0,46416.0,0.754]
[1633084185787,0.12243258,46475.0,46416.0,0.754]
[1633084185788,1.77416311,46463.0,46434.0,0.12874924]
[1633084185984,0.0105,46470.0,46448.0,0.754]
[1633084186184,0.0105,46470.0,46448.0,0.864]
[1633084186386,0.00128272,46449.0,46448.0,0.65001924]
[1633084186585,0.003125,46436.0,46434.0,0.11437424]
[1633084186786,0.003125,46436.0,46378.0,0.15]
[1633084186787,0.7868305,46410.0,46378.0,0.15]
[1633084186985,0.7868305,46410.0,46379.0,23.0]
[1633084186986,0.003125,46390.0,46379.0,23.0]
[1633084187258,0.003125,46386.0,46381.0,0.04875824]
[1633084187389,0.003125,46382.0,46375.0,20.005]
[1633084187585,0.003125,46382.0,46380.0,9.99873]
[1633084187788,0.009375,46377.0,46376.0,19.9987372]
[1633084187989,0.35,46377.0,46362.0,0.25130304]
[1633084188187,0.00121849,46363.0,46362.0,0.2227123]
[1633084188389,1.00099999,46363.0,46362.0,0.1910123]
[1633084188588,0.22468267,46410.0,46394.0,0.26605876]
[1633084188795,0.00131027,46441.0,46426.0,0.11696339]
[1633084189088,0.00131027,46441.0,46405.0,0.1109246]
[1633084189089,0.25,46431.0,46428.0,0.03318808]
[1633084189287,0.0002,46447.0,46428.0,0.03318808]
[1633084189288,0.0002,46447.0,46431.0,0.23032558]
[1633084189488,50.0925664,46500.0,46431.0,0.23032558]
[1633084189489,50.0,46500.0,46478.0,0.5]
[1633084189689,50.0,46500.0,46499.0,0.27280029]
[1633084189893,50.0,46500.0,46498.0,0.5]
[1633084189894,0.003125,46468.0,46467.0,0.73442891]
[1633084190087,0.003125,46468.0,46449.0,0.01157758]
[1633084190088,0.003125,46459.0,46449.0,0.01157758]
[1633084190389,0.003125,46459.0,46430.0,0.5]
[1633084190390,1.31617784,46432.0,46430.0,0.5]
[1633084190591,0.00124754,46455.0,46394.0,0.26293376]
[1633084190592,0.26349269,46420.0,46394.0,0.26293376]
[1633084190789,0.24340855,46414.0,46403.0,0.00190656]
[1633084190986,0.00123646,46405.0,46403.0,0.00190656]
[1633084191185,0.2442624,46414.0,46403.0,0.00170656]
[1633084191387,0.00027883,46405.0,46394.0,0.26293376]
[1633084191586,0.00120216,46405.0,46396.0,0.00124664]
[1633084191790,0.00120216,46405.0,46399.0,0.0012033]
[1633084191989,0.3982,46437.0,46420.0,0.21349269]
[1633084192194,0.77092529,46498.0,46456.0,0.10212]
[1633084192390,0.77092529,46498.0,46461.0,0.00128952]
[1633084192590,0.76187585,46498.0,46463.0,0.5]
[1633084192794,0.04153055,46540.0,46498.0,0.09469283]
[1633084192795,0.09748843,46523.0,46498.0,0.09469283]
[1633084192989,0.0999,46547.0,46498.0,0.09469283]
[1633084192990,48.27057187,46500.0,46499.0,0.42386667]
[1633084193296,5.55449411,46500.0,46499.0,0.79898307]
[1633084193490,3.84066211,46500.0,46499.0,0.66]
[1633084193689,0.02033922,46491.0,46477.0,0.00127044]
[1633084193887,0.02033922,46491.0,46490.0,0.03]
[1633084193888,0.07989543,46491.0,46490.0,0.03]
[1633084194089,0.1782,46499.0,46482.0,0.00128558]
[1633084194286,0.1782,46499.0,46494.0,0.5]
[1633084194485,0.12498038,46490.0,46488.0,0.47416688]
[1633084194688,0.11,46487.0,46466.0,0.16796881]
[1633084194885,0.23351487,46477.0,46476.0,0.00128361]
[1633084195191,0.23351487,46477.0,46455.0,0.001]
[1633084195192,0.3052,46437.0,46429.0,0.03]
[1633084195390,0.39885571,46436.0,46428.0,0.5]
[1633084195688,0.00078782,46455.0,46430.0,0.00122478]
[1633084195893,0.00078782,46455.0,46430.0,0.21293641]
[1633084196254,0.67362849,46485.0,46471.0,0.5]
[1633084196391,0.00125701,46496.0,46476.0,0.5]
[1633084196588,2.74406211,46500.0,46478.0,0.5]
[1633084196901,0.39731524,46499.0,46488.0,0.43527247]
[1633084197089,0.39731524,46499.0,46479.0,0.32337059]
[1633084197090,0.61347247,46488.0,46479.0,0.32337059]
[1633084197291,0.03533398,46487.0,46479.0,0.11]
[1633084197487,0.03533398,46487.0,46472.0,0.00121622]
[1633084197488,0.62648034,46447.0,46416.0,0.11992293]
[1633084197689,0.12768928,46458.0,46420.0,0.0105]
[1633084197690,0.51141847,46421.0,46420.0,0.0105]
[1633084197891,1.18596285,46421.0,46405.0,0.00670622]
[1633084198085,1.18596285,46421.0,46405.0,0.01170622]
[1633084198086,0.63038839,46420.0,46405.0,0.01170622]
[1633084198296,0.63038839,46420.0,46400.0,0.00129923]
[1633084198297,0.01170622,46405.0,46400.0,0.00129923]
[1633084198494,0.01170622,46405.0,46383.0,0.00249249]
[1633084198495,1.82351681,46397.0,46383.0,0.00373441]
[1633084198692,0.30205999,46386.0,46383.0,0.00249249]
[1633084198895,0.30205999,46386.0,46377.0,0.01657069]
[1633084198896,0.1504101,46385.0,46384.0,0.323371]
[1633084199088,0.1504101,46385.0,46384.0,0.313411]
[1633084199089,0.14988,46385.0,46384.0,0.313411]
[1633084199290,0.72423952,46385.0,46377.0,0.00249318]
[1633084199490,2.44178722,46435.0,46377.0,0.00249318]
[1633084199491,0.215647,46446.0,46386.0,1.59830089]
[1633084199692,4.46736114,46495.0,46386.0,1.59830089]
[1633084199693,0.05584789,46494.0,46419.0,0.00122512]
[1633084199891,0.0105,46456.0,46436.0,1.5]
[1633084200090,0.11,46494.0,46436.0,1.5]
[1633084200091,0.2,46499.0,46461.0,1.5]
[1633084200391,0.01835405,46507.0,46500.0,0.723239]
[1633084200593,5.00049794,46522.0,46501.0,0.0983234]
[1633084200594,0.07844096,46512.0,46501.0,0.0983234]
[1633084200794,0.07844096,46512.0,46442.0,0.10874762]
[1633084200795,1.03975697,46461.0,46442.0,0.10874762]
[1633084200992,1.03975697,46461.0,46460.0,0.01774245]
[1633084200993,0.26849381,46461.0,46460.0,0.01774245]
[1633084201201,0.26849381,46461.0,46429.0,0.30059928]
[1633084201202,0.09872679,46422.0,46406.0,0.5]
[1633084201390,0.09872679,46422.0,46400.0,0.16]
[1633084201391,0.5,46406.0,46404.0,0.00109064]
[1633084201590,0.4,46412.0,46377.0,3.18e-06]
[1633084201591,0.50789234,46390.0,46377.0,3.18e-06]
[1633084201904,0.50789234,46390.0,46386.0,0.0105]
[1633084201905,0.46561256,46389.0,46386.0,0.0105]
[1633084202102,0.10723441,46340.0,46335.0,0.0004]
[1633084202294,1.38390594,46321.0,46313.0,0.3643717]
[1633084202491,1.38390594,46321.0,46304.0,0.60728616]
[1633084202492,1.03325809,46308.0,46304.0,0.60728616]
[1633084202691,0.0733862,46307.0,46301.0,0.04391889]
[1633084202887,0.0733862,46307.0,46281.0,4.1844749]
[1633084202888,0.10339931,46306.0,46293.0,0.00482784]
[1633084203088,0.0733862,46307.0,46293.0,0.00482784]
[1633084203089,0.0733862,46307.0,46301.0,0.10195646]
[1633084203289,0.09897256,46315.0,46301.0,0.10195646]
[1633084203290,0.49646714,46314.0,46306.0,0.00121382]
[1633084203487,0.49646714,46314.0,46302.0,0.00123605]
[1633084203488,0.00127724,46302.0,46296.0,0.005]
[1633084203693,0.00127724,46302.0,46293.0,0.00482784]
[1633084203898,0.00127724,46302.0,46278.0,0.20810784]
[1633084204091,0.19795814,46283.0,46271.0,0.005]
[1633084204294,0.03717887,46338.0,46294.0,0.07314468]
[1633084204494,0.0012727,46348.0,46341.0,0.10616579]
[1633084204689,0.0012727,46348.0,46294.0,0.39874604]
[1633084204690,0.005,46364.0,46358.0,0.09522853]
[1633084204899,4.47033496,46455.0,46358.0,0.09522853]
[1633084204900,0.0002,46460.0,46455.0,0.52]
[1633084205249,0.00032,46503.0,46455.0,0.52]
[1633084205250,4.46736114,46491.0,46490.0,0.372]
[1633084205392,0.02,46513.0,46491.0,4.81935414]
[1633084205593,4.61292425,46522.0,46491.0,0.98411996]
[1633084205791,0.13535,46513.0,46496.0,0.86674292]
[1633084206004,0.13535,46513.0,46493.0,0.03413861]
[1633084206005,0.86674292,46496.0,46493.0,0.03441722]
[1633084206204,0.00625036,46496.0,46493.0,0.03715666]
[1633084206400,0.00625036,46496.0,46459.0,0.05973613]
[1633084206401,0.31356551,46477.0,46459.0,0.05973613]
[1633084206592,0.31011936,46473.0,46447.0,0.11992463]
[1633084206792,0.17526216,46445.0,46428.0,0.14296285]
[1633084206991,0.43782731,46425.0,46418.0,0.0012667]
[1633084207298,0.43782731,46425.0,46412.0,0.00129039]
[1633084207299,0.809742,46424.0,46412.0,0.00129039]
[1633084207493,0.809742,46424.0,46382.0,0.00121684]
[1633084207494,1.90126485,46402.0,46401.0,0.005]
[1633084207691,0.97079845,46391.0,46381.0,0.00126289]
[1633084207899,0.97079845,46391.0,46373.0,0.16830884]
[1633084207900,1.16911255,46391.0,46373.0,8.84e-06]
[1633084208093,1.16911255,46391.0,46362.0,0.00121197]
[1633084208094,0.09551378,46374.0,46362.0,0.00121197]
[1633084208293,1.08079845,46391.0,46362.0,0.005]
[1633084208294,0.09114837,46373.0,46362.0,0.005]
[1633084208492,0.11,46373.0,46353.0,11.2]
[1633084208693,0.0012613,46368.0,46354.0,3.0]
[1633084208995,0.81066376,46377.0,46354.0,3.0]
[1633084208996,0.60831998,46383.0,46377.0,3.16128389]
[1633084209203,0.60831998,46383.0,46367.0,0.00123753]
[1633084209204,0.10247024,46430.0,46391.0,0.54465836]
[1633084209401,0.0202265,46417.0,46394.0,0.00127577]
[1633084209602,0.35,46441.0,46416.0,0.12046974]
[1633084209791,0.10164913,46500.0,46416.0,0.12046974]
[1633084209792,0.02,46546.0,46492.0,0.09255078]
[1633084209992,0.02,46546.0,46477.0,0.00099999]
[1633084209993,0.01076011,46515.0,46477.0,0.00099999]
[1633084210194,0.01076011,46515.0,46493.0,0.00059999]
[1633084210391,0.01,46533.0,46503.0,0.00059999]
[1633084210595,0.7647,46513.0,46501.0,1.599e-05]
[1633084210793,0.7647,46513.0,46475.0,0.00659833]
[1633084210794,0.011,46478.0,46475.0,0.00659833]
[1633084210992,0.011,46478.0,46445.0,0.16621707]
[1633084210993,0.00099999,46486.0,46440.0,0.10148805]
[1633084211262,0.21122321,46410.0,46399.0,0.1790953]
[1633084211395,2.21912313,46422.0,46421.0,0.00743618]
[1633084211598,0.76036441,46383.0,46349.0,0.02]
[1633084211793,0.76036441,46383.0,46352.0,0.00128466]
[1633084211794,0.23043853,46372.0,46352.0,0.00128466]
[1633084212100,0.23043853,46372.0,46320.0,0.236471]
[1633084212101,1.33933318,46320.0,46316.0,0.00128452]
[1633084212295,0.17128466,46349.0,46329.0,0.00129255]